fUSD/lending_fUSD_20250916
["ID","MTS","AMOUNT","RATE_DAILY","PERIOD"]
[385845843,1758059505682,-3231.76,0.00032289,6]
[385845844,1758059505691,-400.0,0.00032289,6]
[385845845,1758059505700,-436.89,0.00032289,6]
[385845846,1758059505709,-400.0,0.00032289,6]
[385845847,1758059505718,-485.67,0.00032326,6]
[385845848,1758059505729,-400.0,0.00032326,6]
[385845849,1758059505738,-467.8,0.00032326,6]
[385845850,1758059505747,-400.0,0.00032326,6]
[385845851,1758059505756,-400.0,0.00032327,6]
[385845852,1758059505765,-400.0,0.00032327,6]
[385845853,1758059505774,-467.83,0.00032327,6]
[385845854,1758059505782,-404.48809559,0.00032327,6]
[385845855,1758059505791,-400.0,0.00032327,6]
[385845856,1758059505800,-400.0,0.00032327,6]
[385845857,1758059505809,-400.0,0.00032327,6]
[385845858,1758059505818,-515.31263323,0.00032327,6]
[385845859,1758059505828,-252.25531947,0.00032327,6]
[385845860,1758059505837,-400.0,0.00032327,6]
[385845861,1758059505846,-400.0,0.00032327,6]
[385845862,1758059505855,-400.0,0.00032327,6]
[385845863,1758059505865,-400.0,0.00032327,6]
[385845864,1758059505874,-302.48818507,0.00032327,6]
[385845865,1758059505883,-400.0,0.00032327,6]
[385845866,1758059505892,-400.0,0.00032327,6]
[385845867,1758059505901,-400.0,0.00032327,6]
[385845868,1758059505909,-400.0,0.00032327,6]
[385845869,1758059505991,-400.0,0.00032327,6]
[385845870,1758059506001,-400.0,0.00032327,6]
[385845871,1758059506010,-400.0,0.00032327,6]
[385845872,1758059506018,-453.02,0.00032327,6]
[385845873,1758059506028,-893.66,0.00032327,6]
[385845874,1758059506037,-416.27571307,0.00032327,6]
[385845875,1758059506046,-400.0,0.00032327,6]
[385845876,1758059506054,-400.0,0.00032327,6]
[385845877,1758059506064,-400.0,0.00032327,6]
[385845878,1758059506073,-400.0,0.00032327,6]
[385845879,1758059506082,-400.0,0.00032327,6]
[385845880,1758059506090,-400.0,0.00032327,6]
[385845881,1758059506100,-400.0,0.00032327,6]
[385845882,1758059506108,-400.0,0.00032327,6]
[385845883,1758059506117,-400.0,0.00032327,6]
[385845884,1758059506126,-458.36254057,0.00032327,6]
[385845885,1758059506135,-400.0,0.00032327,6]
[385845886,1758059506145,-404.97,0.00032327,6]
[385845887,1758059506154,-431.58,0.00032327,6]
[385845888,1758059506163,-564.94,0.00032327,6]
[385845889,1758059506172,-400.0,0.00032327,6]
[385845890,1758059506182,-475.93,0.00032327,6]
[385845891,1758059506191,-646.81,0.00032327,6]
[385845892,1758059506200,-400.0,0.00032327,6]
[385845893,1758059506210,-400.0,0.00032327,6]
[385845894,1758059506219,-503.49,0.00032327,6]
[385845895,1758059506228,-555.18,0.00032327,6]
[385845896,1758059506237,-493.67,0.00032327,6]
[385845897,1758059506247,-406.48,0.00032327,6]
[385845898,1758059506256,-400.0,0.00032327,6]
[385845899,1758059506265,-472.57,0.00032327,6]
[385845900,1758059506273,-566.4,0.00032327,6]
[385845901,1758059506282,-443.11,0.00032327,6]
[385845902,1758059506292,-400.0,0.00032327,6]
[385845903,1758059506301,-556.41,0.00032327,6]
[385845904,1758059506310,-642.62,0.00032327,6]
[385845905,1758059506319,-526.48,0.00032327,6]
[385845906,1758059506328,-638.73,0.00032327,6]
[385845907,1758059506338,-400.0,0.00032327,6]
[385845908,1758059506347,-400.0,0.00032327,6]
[385845909,1758059506356,-400.0,0.00032327,6]
[385845910,1758059506365,-514.99,0.00032327,6]
[385845911,1758059506374,-477.56,0.00032327,6]
[385845912,1758059506383,-400.0,0.00032327,6]
[385845913,1758059506395,-400.0,0.00032327,6]
[385845914,1758059506405,-824.84,0.00032327,6]
[385845915,1758059506414,-558.91,0.00032327,6]
[385845916,1758059506424,-429.04,0.00032327,6]
[385845917,1758059506435,-771.88,0.00032327,6]
[385845918,1758059506444,-400.0,0.00032327,6]
[385845919,1758059506453,-456.11,0.00032327,6]
[385845920,1758059506462,-400.0,0.00032327,6]
[385845921,1758059506472,-422.65,0.00032327,6]
[385845922,1758059506481,-400.0,0.00032327,6]
[385845923,1758059506490,-400.0,0.00032327,6]
[385845924,1758059506499,-400.0,0.00032327,6]
[385845925,1758059506508,-400.0,0.00032327,6]
[385845926,1758059506517,-400.0,0.00032327,6]
[385845927,1758059506526,-400.0,0.00032327,6]
[385845928,1758059506535,-682.71,0.00032327,6]
[385845929,1758059506544,-792.25,0.00032327,6]
[385845930,1758059506554,-1411.58,0.00032327,6]
[385845931,1758059506563,-678.71,0.00032327,6]
[385845932,1758059506572,-876.88,0.00032327,6]
[385845933,1758059506582,-922.72,0.00032327,6]
[385845934,1758059506591,-590.13,0.00032327,6]
[385845935,1758059506600,-400.0,0.00032327,6]
[385845936,1758059506609,-684.03,0.00032327,2]
[385845937,1758059506619,-741.55,0.00032327,6]
[385845938,1758059506628,-400.0,0.00032327,6]
[385845939,1758059506638,-400.0,0.00032327,6]
[385845940,1758059506647,-400.0,0.00032327,6]
[385845941,1758059506656,-923.03,0.00032327,6]
[385845942,1758059506665,-590.27,0.00032327,6]
[385845943,1758059506674,-400.0,0.00032328,6]
[385845944,1758059506683,-400.0,0.00032328,6]
[385845945,1758059506694,-400.0,0.00032328,6]
[385845946,1758059506704,-400.0,0.00032328,6]
[385845947,1758059506712,-400.0,0.00032328,6]
[385845948,1758059506721,-400.0,0.00032328,6]
[385845949,1758059506730,-400.0,0.00032328,6]
[385845950,1758059506740,-400.0,0.00032328,6]
[385845951,1758059506749,-400.0,0.00032328,6]
[385845952,1758059506758,-161.15884484,0.00032328,6]
[385845953,1758059506767,-400.0,0.00032328,6]
[385845954,1758059506776,-400.0,0.00032328,6]
[385845955,1758059506785,-340.62089663,0.00032328,6]
[385845956,1758059506794,-400.0,0.00032328,6]
[385845957,1758059506802,-400.0,0.00032328,6]
[385845958,1758059506811,-446.83,0.00032328,6]
[385845959,1758059506820,-400.0,0.00032328,6]
[385845960,1758059506829,-400.0,0.00032328,6]
[385845961,1758059506840,-400.0,0.00032328,6]
[385845962,1758059506849,-400.0,0.00032328,6]
[385845963,1758059506858,-400.0,0.00032328,6]
[385845964,1758059506867,-400.0,0.00032328,6]
[385845965,1758059506876,-547.28,0.00032328,6]
[385845966,1758059506885,-400.0,0.00032328,6]
[385845967,1758059506894,-400.0,0.00032328,6]
[385845968,1758059506903,-400.0,0.00032328,6]
[385845969,1758059506912,-400.0,0.00032328,6]
[385845970,1758059506921,-400.0,0.00032328,6]
[385845971,1758059506931,-400.0,0.00032328,6]
[385845972,1758059506940,-400.0,0.00032328,6]
[385845973,1758059506949,-400.0,0.00032328,6]
[385845974,1758059506958,-400.0,0.00032328,6]
[385845975,1758059506967,-163.95594239,0.00032328,6]
[385845976,1758059506977,-400.0,0.00032328,6]
[385845977,1758059506986,-400.0,0.00032328,6]
[385845978,1758059506995,-400.0,0.00032328,6]
[385845979,1758059507004,-400.0,0.00032328,6]
[385845980,1758059507013,-400.0,0.00032328,6]
[385845981,1758059507022,-400.0,0.00032328,6]
[385845982,1758059507031,-404.16,0.00032328,6]
[385845983,1758059507040,-400.0,0.00032328,6]
[385845984,1758059507050,-400.0,0.00032328,6]
[385845985,1758059507058,-528.17,0.00032328,6]
[385845986,1758059507068,-542.9,0.00032328,6]
[385845987,1758059507077,-400.0,0.00032328,6]
[385845988,1758059507086,-400.0,0.00032328,6]
[385845989,1758059507095,-400.0,0.00032328,6]
[385845990,1758059507104,-400.0,0.00032328,6]
[385845991,1758059507114,-543.99263971,0.00032328,6]
[385845992,1758059507122,-400.0,0.00032328,6]
[385845993,1758059507132,-854.5,0.00032328,6]
[385845994,1758059507141,-403.43,0.00032328,6]
[385845995,1758059507150,-400.0,0.00032328,6]
[385845996,1758059507159,-400.0,0.00032328,6]
[385845997,1758059507168,-400.0,0.00032328,6]
[385845998,1758059507177,-400.0,0.00032328,6]
[385845999,1758059507186,-400.0,0.00032328,6]
[385846000,1758059507195,-400.0,0.00032328,6]
[385846001,1758059507204,-246.2262416,0.00032328,6]
[385846002,1758059507213,-400.0,0.00032328,6]
[385846003,1758059507223,-400.0,0.00032328,6]
[385846004,1758059507232,-400.0,0.00032328,6]
[385846005,1758059507242,-400.0,0.00032328,6]
[385846006,1758059507251,-400.0,0.00032328,6]
[385846007,1758059507260,-400.0,0.00032328,6]
[385846008,1758059507270,-400.0,0.00032328,6]
[385846009,1758059507279,-400.0,0.00032328,6]
[385846010,1758059507288,-425.79,0.00032328,6]
[385846011,1758059507297,-400.0,0.00032328,6]
[385846012,1758059507306,-440.62,0.00032328,6]
[385846013,1758059507316,-400.0,0.00032328,6]
[385846014,1758059507325,-400.0,0.00032328,6]
[385846015,1758059507334,-400.0,0.00032328,6]
[385846016,1758059507344,-627.06,0.00032328,6]
[385846017,1758059507354,-400.0,0.00032328,6]
[385846018,1758059507362,-400.0,0.00032328,6]
[385846019,1758059507372,-404.88,0.00032328,6]
[385846020,1758059507382,-400.0,0.00032328,6]
[385846021,1758059507392,-321.97579829,0.00032328,6]
[385846022,1758059507404,-400.0,0.00032328,6]
[385846023,1758059507413,-400.0,0.00032328,6]
[385846024,1758059507422,-400.0,0.00032328,6]
[385846025,1758059507432,-597.91,0.00032328,6]
[385846026,1758059507442,-550.75,0.00032328,6]
[385846027,1758059507451,-482.27,0.00032328,6]
[385846028,1758059507461,-400.0,0.00032328,6]
[385846029,1758059507472,-400.0,0.00032328,6]
[385846030,1758059507481,-400.0,0.00032328,6]
[385846031,1758059507491,-489.33,0.00032328,6]
[385846032,1758059507500,-400.0,0.00032328,6]
[385846033,1758059507509,-400.0,0.00032328,6]
[385846034,1758059507518,-400.0,0.00032328,6]
[385846035,1758059507527,-400.44,0.00032328,6]
[385846036,1758059507537,-432.89,0.00032328,6]
[385846037,1758059507546,-1630.47,0.00032328,6]
[385846038,1758059507555,-400.0,0.00032328,6]
[385846039,1758059507565,-400.0,0.00032328,6]
[385846040,1758059507575,-464.0,0.00032328,6]
[385846041,1758059507584,-541.51,0.00032328,6]
[385846042,1758059507593,-400.0,0.00032328,6]
[385846043,1758059507602,-400.0,0.00032328,6]
[385846044,1758059507611,-400.0,0.00032328,6]
[385846045,1758059507620,-400.0,0.00032328,6]
[385846046,1758059507630,-400.0,0.00032328,6]
[385846047,1758059507640,-431.13,0.00032328,6]
[385846048,1758059507649,-400.0,0.00032328,6]
[385846049,1758059507658,-666.3,0.00032328,6]
[385846050,1758059507667,-400.0,0.00032328,6]
[385846051,1758059507675,-400.0,0.00032328,6]
[385846052,1758059507685,-400.0,0.00032328,6]
[385846053,1758059507695,-400.0,0.00032328,6]
[385846054,1758059507704,-400.0,0.00032328,6]
[385846055,1758059507714,-547.93,0.00032328,6]
[385846056,1758059507724,-400.0,0.00032328,6]
[385846057,1758059507734,-400.0,0.00032328,6]
[385846058,1758059507743,-400.0,0.00032328,6]
[385846059,1758059507752,-474.55,0.00032328,6]
[385846060,1758059507762,-681.13,0.00032328,6]
[385846061,1758059507771,-445.76,0.00032328,6]
[385846062,1758059507780,-400.0,0.00032328,6]
[385846063,1758059507789,-400.0,0.00032328,6]
[385846064,1758059507798,-520.69,0.00032328,6]
[385846065,1758059507808,-400.0,0.00032328,6]
[385846066,1758059507817,-402.9,0.00032328,6]
[385846067,1758059507826,-400.0,0.00032328,6]
[385846068,1758059507836,-400.0,0.00032328,6]
[385846069,1758059507845,-400.0,0.00032328,6]
[385846070,1758059507854,-400.0,0.00032328,6]
[385846071,1758059507863,-400.0,0.00032328,6]
[385846072,1758059507873,-305.40693922,0.00032328,6]
[385846073,1758059507882,-400.0,0.00032328,6]
[385846074,1758059507892,-400.0,0.00032328,6]
[385846075,1758059507901,-400.0,0.00032328,6]
[385846076,1758059507910,-520.75,0.00032328,6]
[385846077,1758059507920,-438.72,0.00032328,6]
[385846078,1758059507929,-930.22,0.00032328,6]
[385846079,1758059507938,-400.0,0.00032328,6]
[385846080,1758059507947,-400.0,0.00032328,6]
[385846081,1758059507957,-691.69,0.00032328,6]
[385846082,1758059507966,-541.46,0.00032328,6]
[385846083,1758059507976,-400.0,0.00032328,6]
[385846084,1758059507985,-400.0,0.00032328,6]
[385846085,1758059507995,-400.0,0.00032328,6]
[385846086,1758059508004,-840.93,0.00032328,6]
[385846087,1758059508014,-400.0,0.00032328,6]
[385846088,1758059508023,-400.0,0.00032328,6]
[385846089,1758059508033,-400.0,0.00032328,6]
[385846090,1758059508043,-531.61,0.00032328,6]
[385846091,1758059508053,-400.0,0.00032328,6]
[385846092,1758059508062,-400.0,0.00032328,6]
[385846093,1758059508072,-400.0,0.00032328,6]
[385846094,1758059508081,-528.41,0.00032328,6]
[385846095,1758059508091,-400.0,0.00032328,6]
[385846096,1758059508100,-3105.74,0.00032328,6]
[385846097,1758059508109,-400.0,0.00032328,6]
[385846098,1758059508118,-593.33,0.00032328,6]
[385846099,1758059508128,-530.57,0.00032328,6]
[385846100,1758059508137,-400.0,0.00032328,6]
[385846101,1758059508146,-400.0,0.00032328,6]
[385846102,1758059508155,-801.13,0.00032328,6]
[385846103,1758059508165,-400.0,0.00032328,6]
[385846104,1758059508174,-400.0,0.00032328,6]
[385846105,1758059508183,-400.0,0.00032328,6]
[385846106,1758059508192,-189.80516996,0.00032328,6]
[385846107,1758059508202,-400.0,0.00032328,6]
[385846108,1758059508210,-400.0,0.00032328,6]
[385846109,1758059508219,-400.0,0.00032328,6]
[385846110,1758059508229,-400.0,0.00032328,6]
[385846111,1758059508239,-720.72,0.00032328,6]
[385846112,1758059508249,-394.52,0.00032328,6]
[385846113,1758059508259,-400.0,0.00032328,6]
[385846114,1758059508268,-450.36,0.00032328,6]
[385846115,1758059508277,-400.0,0.00032328,6]
[385846116,1758059508287,-400.0,0.00032328,6]
[385846117,1758059508296,-400.0,0.00032328,6]
[385846118,1758059508306,-400.0,0.00032328,6]
[385846119,1758059508315,-455.10615735,0.00032328,6]
[385846120,1758059508325,-400.0,0.00032328,6]
[385846121,1758059508335,-400.0,0.00032328,6]
[385846122,1758059508344,-400.0,0.00032328,6]
[385846123,1758059508354,-400.0,0.00032328,6]
[385846124,1758059508364,-400.0,0.00032328,6]
[385846125,1758059508374,-455.66,0.00032328,6]
[385846126,1758059508383,-400.0,0.00032328,6]
[385846127,1758059508394,-400.0,0.00032328,6]
[385846128,1758059508406,-400.0,0.00032328,6]
[385846129,1758059508415,-400.0,0.00032328,6]
[385846130,1758059508425,-452.15,0.00032328,6]
[385846131,1758059508434,-400.0,0.00032328,6]
[385846132,1758059508445,-599.86,0.00032328,6]
[385846133,1758059508455,-1299.74,0.00032328,6]
[385846134,1758059508464,-572.67,0.00032328,6]
[385846135,1758059508475,-400.0,0.00032328,6]
[385846136,1758059508485,-400.0,0.00032328,6]
[385846137,1758059508494,-422.38,0.00032328,6]
[385846138,1758059508503,-400.0,0.00032328,6]
[385846139,1758059508513,-400.0,0.00032328,6]
[385846140,1758059508522,-404.16,0.00032328,6]
[385846141,1758059508532,-400.0,0.00032328,6]
[385846142,1758059508542,-400.0,0.00032328,6]
[385846143,1758059508551,-400.0,0.00032328,6]
[385846144,1758059508561,-400.0,0.00032328,6]
[385846145,1758059508571,-924.76,0.00032328,6]
[385846146,1758059508580,-400.0,0.00032328,6]
[385846147,1758059508589,-323.34738204,0.00032328,6]
[385846148,1758059508599,-1289.24,0.00032328,6]
[385846149,1758059508608,-400.0,0.00032328,6]
[385846150,1758059508617,-400.0,0.00032328,6]
[385846151,1758059508626,-400.0,0.00032328,6]
[385846152,1758059508636,-400.0,0.00032328,6]
[385846153,1758059508647,-400.0,0.00032328,6]
[385846154,1758059508657,-400.0,0.00032328,6]
[385846155,1758059508667,-554.69,0.00032328,6]
[385846156,1758059508677,-400.0,0.00032328,6]
[385846157,1758059508686,-799.13,0.00032328,6]
[385846158,1758059508696,-467.79,0.00032328,6]
[385846159,1758059508705,-943.71,0.00032328,6]
[385846160,1758059508714,-400.0,0.00032328,6]
[385846161,1758059508723,-376.78668803,0.00032328,6]
[385846162,1758059508733,-400.0,0.00032328,6]
[385846163,1758059508742,-617.84,0.00032328,6]
[385846164,1758059508751,-562.81,0.00032328,6]
[385846165,1758059508760,-400.0,0.00032328,6]
[385846166,1758059508769,-1554.92,0.00032328,6]
[385846167,1758059508779,-400.0,0.00032328,6]
[385846168,1758059508788,-472.52,0.00032328,6]
[385846169,1758059508797,-445.765415,0.00032328,6]
[385846170,1758059508806,-400.0,0.00032328,6]
[385846171,1758059508816,-400.0,0.00032328,6]
[385846172,1758059508825,-502.44,0.00032328,6]
[385846173,1758059508835,-400.0,0.00032328,6]
[385846174,1758059508845,-2454.26,0.00032328,6]
[385846175,1758059508855,-400.0,0.00032328,6]
[385846176,1758059508865,-408.31120741,0.00032328,6]
[385846177,1758059508874,-814.45,0.00032328,6]
[385846178,1758059508883,-400.0,0.00032328,6]
[385846179,1758059508893,-400.0,0.00032328,6]
[385846180,1758059508902,-581.21,0.00032328,6]
[385846181,1758059508911,-400.0,0.00032328,6]
[385846182,1758059508920,-2151.75,0.00032328,6]
[385846183,1758059508930,-400.0,0.00032328,6]
[385846184,1758059508939,-400.0,0.00032328,6]
[385846185,1758059508949,-470.05271038,0.00032328,6]
[385846186,1758059508958,-400.0,0.00032328,6]
[385846187,1758059508967,-201.99935384,0.00032328,6]
[385846188,1758059508977,-400.0,0.00032328,6]
[385846189,1758059508987,-590.85,0.00032328,6]
[385846190,1758059508996,-400.0,0.00032328,6]
[385846191,1758059509006,-400.0,0.00032328,6]
[385846192,1758059509015,-576.61,0.00032328,6]
[385846193,1758059509024,-400.0,0.00032328,6]
[385846194,1758059509034,-616.64,0.00032328,6]
[385846195,1758059509043,-400.0,0.00032328,6]
[385846196,1758059509052,-400.0,0.00032328,6]
[385846197,1758059509062,-426.57,0.00032328,6]
[385846198,1758059509071,-862.95,0.00032328,6]
[385846199,1758059509081,-215.88181841,0.00032328,6]
[385846200,1758059509091,-2554.31,0.00032328,6]
[385846201,1758059509312,-695.75,0.00032328,6]
[385846202,1758059509322,-465.42,0.00032328,6]
[385846203,1758059509332,-278.34801745,0.00032328,6]
[385846204,1758059509342,-528.3,0.00032328,6]
[385846205,1758059509351,-400.0,0.00032328,6]
[385846206,1758059509361,-400.0,0.00032328,6]
[385846207,1758059509371,-629.46,0.00032328,6]
[385846208,1758059509380,-400.0,0.00032328,6]
[385846209,1758059509390,-402.58,0.00032328,6]
[385846210,1758059509403,-760.02,0.00032328,6]
[385846211,1758059509413,-400.0,0.00032328,6]
[385846212,1758059509423,-400.0,0.00032328,6]
[385846213,1758059509433,-573.15,0.00032328,6]
[385846214,1758059509443,-400.0,0.00032328,6]
[385846215,1758059509452,-555.71,0.00032328,6]
[385846216,1758059509462,-400.0,0.00032328,6]
[385846217,1758059509472,-400.0,0.00032328,6]
[385846218,1758059509481,-400.0,0.00032328,6]
[385846219,1758059509491,-400.0,0.00032328,6]
[385846220,1758059509501,-400.0,0.00032328,6]
[385846221,1758059509510,-479.18,0.00032328,6]
[385846222,1758059509520,-447.53,0.00032328,6]
[385846223,1758059509535,-418.11,0.00032328,6]
[385846224,1758059509545,-423.89,0.00032328,6]
[385846225,1758059509554,-435.17,0.00032328,6]
[385846226,1758059509565,-450.0,0.00032328,6]
[385846227,1758059509575,-400.0,0.00032328,6]
[385846228,1758059509586,-400.0,0.00032328,6]
[385846229,1758059509597,-400.0,0.00032328,6]
[385846230,1758059509607,-400.0,0.00032328,6]
[385846231,1758059509618,-778.74,0.00032328,6]
[385846232,1758059509630,-704.61,0.00032328,6]
[385846233,1758059509640,-400.0,0.00032328,6]
[385846234,1758059509650,-522.49836996,0.00032328,6]
[385846235,1758059509661,-302.37629038,0.00032328,6]
[385846236,1758059509671,-400.0,0.00032328,6]
[385846237,1758059509681,-400.0,0.00032328,6]
[385846238,1758059509690,-1172.18,0.00032328,6]
[385846239,1758059509700,-5286.95,0.00032328,6]
[385846240,1758059509710,-400.0,0.00032328,6]
[385846241,1758059509719,-400.0,0.00032328,6]
[385846242,1758059509729,-400.0,0.00032328,6]
[385846243,1758059509739,-542.4,0.00032328,6]
[385846244,1758059509748,-265.45388095,0.00032328,6]
[385846245,1758059509757,-400.0,0.00032328,6]
[385846246,1758059509768,-400.0,0.00032328,6]
[385846247,1758059509779,-400.0,0.00032328,6]
[385846248,1758059509788,-435.09,0.00032328,6]
[385846249,1758059509798,-527.52,0.00032328,6]
[385846250,1758059509807,-411.01587404,0.00032328,6]
[385846251,1758059509817,-551.22,0.00032328,6]
[385846252,1758059509826,-400.0,0.00032328,6]
[385846253,1758059509836,-400.0,0.00032328,6]
[385846254,1758059509846,-400.0,0.00032328,6]
[385846255,1758059509855,-150.32687815,0.00032328,6]
[385846256,1758059509865,-400.0,0.00032328,6]
[385846257,1758059509874,-483.09,0.00032328,6]
[385846258,1758059509883,-400.0,0.00032328,6]
[385846259,1758059509892,-400.0,0.00032328,6]
[385846260,1758059509902,-777.85,0.00032328,6]
[385846261,1758059509911,-400.0,0.00032328,6]
[385846262,1758059509921,-445.13,0.00032328,6]
[385846263,1758059509933,-510.44,0.00032328,6]
[385846264,1758059509943,-400.0,0.00032328,6]
[385846265,1758059509955,-400.0,0.00032328,6]
[385846266,1758059509966,-650.71,0.00032328,6]
[385846267,1758059509975,-632.37,0.00032328,6]
[385846268,1758059509985,-400.0,0.00032328,6]
[385846269,1758059509995,-400.0,0.00032328,6]
[385846270,1758059510005,-400.0,0.00032328,6]
[385846271,1758059510015,-400.0,0.00032328,6]
[385846272,1758059510026,-763.55,0.00032328,6]
[385846273,1758059510035,-185.641559,0.00032328,6]
[385846274,1758059510045,-400.0,0.00032328,6]
[385846275,1758059510055,-400.0,0.00032328,6]
[385846276,1758059510064,-701.89,0.00032328,6]
[385846277,1758059510075,-620.92,0.00032328,6]
[385846278,1758059510085,-400.0,0.00032328,6]
[385846279,1758059510095,-400.0,0.00032328,6]
[385846280,1758059510105,-796.09,0.00032328,6]
[385846281,1758059510114,-400.0,0.00032328,6]
[385846282,1758059510124,-400.0,0.00032328,6]
[385846283,1758059510134,-400.0,0.00032328,6]
[385846284,1758059510143,-400.0,0.00032328,6]
[385846285,1758059510153,-252.24795829,0.00032328,6]
[385846286,1758059510163,-400.0,0.00032328,6]
[385846287,1758059510172,-400.0,0.00032328,6]
[385846288,1758059510182,-400.0,0.00032328,6]
[385846289,1758059510192,-400.0,0.00032328,6]
[385846290,1758059510203,-400.0,0.00032328,6]
[385846291,1758059510212,-400.0,0.00032328,6]
[385846292,1758059510222,-400.0,0.00032328,6]
[385846293,1758059510232,-745.62,0.00032328,6]
[385846294,1758059510242,-163.5465336,0.00032328,6]
[385846295,1758059510252,-629.24,0.00032328,6]
[385846296,1758059510261,-419.01322424,0.00032328,6]
[385846297,1758059510271,-400.0,0.00032328,6]
[385846298,1758059510281,-447.35,0.00032328,6]
[385846299,1758059510291,-400.0,0.00032328,6]
[385846300,1758059510300,-400.0,0.00032328,6]
[385846301,1758059510310,-400.0,0.00032328,6]
[385846302,1758059510319,-936.1,0.00032328,6]
[385846303,1758059510329,-400.0,0.00032328,6]
[385846304,1758059510338,-400.0,0.00032328,6]
[385846305,1758059510348,-400.0,0.00032328,6]
[385846306,1758059510358,-400.0,0.00032328,6]
[385846307,1758059510368,-400.0,0.00032328,6]
[385846308,1758059510378,-400.0,0.00032328,6]
[385846309,1758059510387,-1215.29,0.00032328,6]
[385846310,1758059510400,-400.0,0.00032328,6]
[385846311,1758059510409,-400.0,0.00032328,6]
[385846312,1758059510419,-400.0,0.00032328,6]
[385846313,1758059510429,-400.0,0.00032328,6]
[385846314,1758059510439,-400.0,0.00032328,6]
[385846315,1758059510449,-470.35,0.00032328,6]
[385846316,1758059510458,-400.0,0.00032328,6]
[385846317,1758059510469,-400.0,0.00032328,6]
[385846318,1758059510479,-400.0,0.00032328,6]
[385846319,1758059510490,-722.71,0.00032328,6]
[385846320,1758059510501,-400.0,0.00032328,6]
[385846321,1758059510511,-163.21334022,0.00032328,6]
[385846322,1758059510521,-656.3,0.00032328,6]
[385846323,1758059510531,-400.0,0.00032328,6]
[385846324,1758059510542,-1790.44,0.00032328,6]
[385846325,1758059510552,-400.0,0.00032328,6]
[385846326,1758059510562,-400.0,0.00032328,6]
[385846327,1758059510573,-400.0,0.00032328,6]
[385846328,1758059510583,-1382.16,0.00032328,6]
[385846329,1758059510593,-400.0,0.00032328,6]
[385846330,1758059510604,-429.26,0.00032328,6]
[385846331,1758059510614,-1005.55,0.00032328,6]
[385846332,1758059510625,-400.0,0.00032328,6]
[385846333,1758059510635,-400.0,0.00032328,6]
[385846334,1758059510645,-400.0,0.00032328,6]
[385846335,1758059510655,-400.0,0.00032328,6]
[385846336,1758059510666,-400.0,0.00032328,6]
[385846337,1758059510677,-400.0,0.00032328,6]
[385846338,1758059510687,-400.0,0.00032328,6]
[385846339,1758059510699,-400.0,0.00032328,6]
[385846340,1758059510708,-400.0,0.00032328,6]
[385846341,1758059510719,-690.12,0.00032328,6]
[385846342,1758059510728,-400.0,0.00032328,6]